[Event "FIDE Open Sachove Univerzity QCC"]
[Site "Ceske Budejovice"]
[Date "2020.07.10"]
[Round "5.2"]
[White "Petkov, Andon"]
[Black "Svetly, Jiri"]
[Result "1/2-1/2"]
[ECO "A06"]
[WhiteElo "1776"]
[BlackElo "1835"]
[Annotator "NA RC"]
[PlyCount "95"]
[EventDate "2020.07.01"]
[EventType "swiss"]
[EventCountry "CZE"]
[TimeControl "40/5400+30:1800+30"]

1. b3 {[%emt 0:01:06]} d5 {[%emt 0:00:26]} 2. Bb2 {[%emt 0:00:06]} c5 {[%emt 0:02:09]} 3. e3 {[%emt 0:00:14]} Nc6 {[%emt 0:01:41]} 4. Nf3 {[%emt 0:01:01]} f6 {[%emt 0:01:29]} 5. d4 {[%emt 0:00:41]} cxd4 {[%emt 0:00:24]} 6. exd4 {[%emt 0:00:20]} Bg4 {[%emt 0:00:18]} 7. Be2 {[%emt 0:01:15]} e6 {[%emt 0:04:52]} 8. Nbd2 {[%emt 0:00:40]} Bb4 {[%emt 0:01:18]} 9. c3 {[%emt 0:00:13]} Bd6 {[%emt 0:00:18]} 10. Nf1 {[%emt 0:04:23]} f5 {[%emt 0:07:29]} 11. Ne3 {[%emt 0:02:40]} Bh5 {[%emt 0:00:25]} 12. Nc2 {[%emt 0:07:00]} Bxf3 {[%emt 0:06:47]} 13. Bxf3 {[%emt 0:01:52]} Nf6 {[%emt 0:00:06]} 14. Qe2 {[%emt 0:09:17]} Ne4 {[%emt 0:11:22]} 15. O-O-O {[%emt 0:08:12]} O-O {[%emt 0:10:27]} 16. g3 {[%emt 0:02:39]} Qa5 {[%emt 0:01:58]} 17. Bxe4 {[%emt 0:07:03]} fxe4 {[%emt 0:00:52]} 18. Kb1 {[%emt 0:00:52]} b5 {[%emt 0:01:26]} 19. Rhf1 {[%emt 0:01:18]} Rf3 {[%emt 0:02:33]} 20. Ne1 {[%emt 0:06:10]} Rf6 {[%emt 0:00:53]} 21. Nc2 {[%emt 0:02:15]} Raf8 {[%emt 0:01:00]} 22. Ne3 {[%emt 0:01:09]} Rf3 {[%emt 0:01:21]} 23. Rc1 {[%emt 0:02:46]} Ba3 {[%emt 0:04:28]} 24. Bxa3 {[%emt 0:09:55]} Qxa3 {[%emt 0:00:09]} 25. Qxb5 {[%emt 0:00:08]} Rxf2 {[%emt 0:00:51]} 26. Rxf2 {[%emt 0:00:11]} Rxf2 {[%emt 0:00:17]} 27. Rc2 {[%emt 0:00:12]} Rxc2 {[%emt 0:00:33]} 28. Nxc2 {[%emt 0:00:14]} Qd6 {[%emt 0:00:13]} 29. Ne3 {[%emt 0:01:14]} Kf7 {[%emt 0:02:44]} 30. Kb2 {[%emt 0:02:30]} h5 {[%emt 0:02:43]} 31. b4 {[%emt 0:01:55]} g5 {[%emt 0:01:33]} 32. Kb3 {[%emt 0:02:06]} a6 {[%emt 0:03:19]} 33. Qb6 {[%emt 0:03:43]} Ke7 {[%emt 0:03:57]} 34. a4 {[%emt 0:04:06]} Nb8 {[%emt 0:00:34]} 35. Qxd6+ {[%emt 0:01:28]} Kxd6 {[%emt 0:00:10]} 36. c4 {[%emt 0:00:06]} dxc4+ {[%emt 0:13:59]} 37. Nxc4+ {[%emt 0:04:12]} Kc6 {[%emt 0:01:40]} 38. Ne5+ {[%emt 0:02:27]} Kd5 {[%emt 0:01:00]} 39. Kc3 {[%emt 0:00:09]} Nc6 {[%emt 0:02:23]} 40. Nxc6 {[%emt 0:03:21]} Kxc6 {[%emt 0:00:11]} 41. h3 {[%emt 0:35:22]} g4 {[%emt 0:11:17]} 42. h4 {[%emt 0:00:00]} Kd5 {[%emt 0:03:52]} 43. b5 {[%emt 0:00:00]} axb5 {[%emt 0:05:29]} 44. axb5 {[%emt 0:00:00]} Kd6 {[%emt 0:05:15]} 45. Kd2 {[%emt 0:00:00]} Kc7 {[%emt 0:00:06]} 46. Ke3 {[%emt 0:00:00]} Kb6 {[%emt 0:00:09]} 47. Kxe4 {[%emt 0:00:00]} Kxb5 {[%emt 0:00:10]} 48. d5 {[%emt 0:00:00]} 1/2-1/2

[Event "FIDE Open Sachove Univerzity QCC"]
[Site "Ceske Budejovice"]
[Date "2020.07.05"]
[Round "5.2"]
[White "Stavova, Marketa"]
[Black "Zezula, Jakub"]
[Result "0-1"]
[ECO "B01"]
[WhiteElo "1219"]
[BlackElo "1449"]
[Annotator "NA"]
[PlyCount "100"]
[EventDate "2020.07.01"]
[EventType "swiss"]
[EventCountry "CZE"]
[SourceTitle "playchess.com"]
[Source "ChessBase"]
[SourceQuality "1"]
[TimeControl "40/5400+30:1800+30"]

1. e4 {[%emt 0:00:00]} d5 {[%emt 0:00:00]} 2. exd5 {[%emt 0:00:05]} Qxd5 {[%emt 0:00:00]} 3. d4 {[%emt 0:00:21]} c6 {[%emt 0:00:05]} 4. Nc3 {[%emt 0:00:26]} Qd6 {[%emt 0:00:18]} 5. Nf3 {[%emt 0:00:51]} Nf6 {[%emt 0:00:31]} 6. Bg5 {[%emt 0:01:11]} Bg4 {[%emt 0:00:47]} 7. Be2 {[%emt 0:01:47]} Nbd7 {[%emt 0:00:35]} 8. Qd2 {[%emt 0:01:26]} e6 {[%emt 0:00:21]} 9. Bf4 {[%emt 0:01:31]} Qb4 {[%emt 0:00:47]} 10. O-O-O {[%emt 0:02:02]} Be7 {[%emt 0:01:37]} 11. h3 {[%emt 0:01:14]} Bh5 {[%emt 0:01:18]} 12. g4 {[%emt 0:01:18]} Bg6 {[%emt 0:00:06]} 13. Rdg1 {[%emt 0:02:48]} Qa5 {[%emt 0:06:41]} 14. h4 {[%emt 0:03:09]} Bb4 {[%emt 0:05:07]} 15. h5 {[%emt 0:03:58]} Be4 {[%emt 0:02:03]} 16. a3 {[%emt 0:01:04]} Bxc3 {[%emt 0:04:18]} 17. Qxc3 {[%emt 0:00:31]} Qxc3 {[%emt 0:00:42]} 18. bxc3 {[%emt 0:00:50]} Nd5 {[%emt 0:00:40]} 19. Bd2 {[%emt 0:00:57]} b5 {[%emt 0:00:57]} 20. Rh3 {[%emt 0:01:44]} Bxf3 {[%emt 0:05:43]} 21. Rxf3 {[%emt 0:02:44]} N7b6 {[%emt 0:01:21]} 22. Bd3 {[%emt 0:05:04]} Nc4 {[%emt 0:02:36]} 23. Bxc4 {[%emt 0:01:57]} bxc4 {[%emt 0:00:06]} 24. g5 {[%emt 0:01:14]} Rb8 {[%emt 0:01:24]} 25. g6 {[%emt 0:01:24]} hxg6 {[%emt 0:01:09]} 26. hxg6 {[%emt 0:02:46]} f6 {[%emt 0:03:23]} 27. Re1 {[%emt 0:01:52]} Kd7 {[%emt 0:01:02]} 28. Rg3 {[%emt 0:01:33]} Rh2 {[%emt 0:03:01]} 29. f3 {[%emt 0:01:40]} Rb6 {[%emt 0:03:13]} 30. Rf1 {[%emt 0:05:56]} Ra6 {[%emt 0:02:46]} 31. Be1 {[%emt 0:05:10]} Rxa3 {[%emt 0:01:07]} 32. Kb2 {[%emt 0:00:58]} Ra6 {[%emt 0:00:34]} 33. f4 {[%emt 0:01:15]} Rb6+ {[%emt 0:01:13]} 34. Kc1 {[%emt 0:00:52]} Ne7 {[%emt 0:00:33]} 35. Bd2 {[%emt 0:01:00]} a5 {[%emt 0:00:44]} 36. Be3 {[%emt 0:02:12]} Rb5 {[%emt 0:00:43]} 37. Bf2 {[%emt 0:02:04]} a4 {[%emt 0:01:16]} 38. Kd2 {[%emt 0:00:45]} a3 {[%emt 0:00:38]} 39. Rgg1 {[%emt 0:01:12]} a2 {[%emt 0:02:20]} 40. Ke2 {[%emt 0:03:07]} Rb2 {[%emt 0:01:19]} 41. Kf3 {[%emt 0:30:37]} Rxc2 {[%emt 0:30:45]} 42. Kg3 {[%emt 0:01:33]} Rh6 {[%emt 0:01:27]} 43. Ra1 {[%emt 0:02:08]} Nf5+ {[%emt 0:02:24]} 44. Kf3 {[%emt 0:00:59]} Rxc3+ {[%emt 0:00:11]} 45. Ke2 {[%emt 0:01:39]} Rc2+ {[%emt 0:00:54]} 46. Ke1 {[%emt 0:00:42]} Rb2 {[%emt 0:00:28]} 47. Rf1 {[%emt 0:01:35]} Rh2 {[%emt 0:01:45]} 48. Rg1 {[%emt 0:01:06]} Rhxf2 {[%emt 0:01:15]} 49. Rc1 {[%emt 0:01:04]} Rbe2+ {[%emt 0:00:25]} 50. Kd1 {[%emt 0:00:17]} Ne3# {[%emt 0:00:06]} 0-1

[Event "FIDE Open Sachove Univerzity QCC"]
[Site "Ceske Budejovice"]
[Date "2020.07.10"]
[Round "5.3"]
[White "Janouskova, Adela"]
[Black "Simacek, Vaclav"]
[Result "0-1"]
[ECO "C45"]
[WhiteElo "1377"]
[BlackElo "1816"]
[Annotator "NA RC"]
[PlyCount "106"]
[EventDate "2020.07.01"]
[EventType "swiss"]
[EventCountry "CZE"]
[TimeControl "40/5400+30:1800+30"]

1. e4 {[%emt 0:00:00]} Nc6 {[%emt 0:00:00]} 2. Nf3 {[%emt 0:00:00]} e5 {[%emt 0:00:21]} 3. d4 {[%emt 0:00:21]} exd4 {[%emt 0:00:17]} 4. Nxd4 {[%emt 0:00:09]} Bc5 {[%emt 0:00:59]} 5. Be3 {[%emt 0:01:58]} Qf6 {[%emt 0:01:42]} 6. c3 {[%emt 0:01:51]} Nge7 {[%emt 0:02:41]} 7. Bc4 {[%emt 0:01:56]} d6 {[%emt 0:04:32]} 8. O-O {[%emt 0:00:40]} O-O {[%emt 0:00:49]} 9. Qd2 {[%emt 0:01:28]} Qg6 {[%emt 0:01:33]} 10. Nxc6 {[%emt 0:01:47]} Nxc6 {[%emt 0:00:49]} 11. Bxc5 {[%emt 0:01:23]} dxc5 {[%emt 0:00:22]} 12. Qe3 {[%emt 0:01:10]} Ne5 {[%emt 0:03:27]} 13. Be2 {[%emt 0:03:27]} Be6 {[%emt 0:03:52]} 14. Nd2 {[%emt 0:02:03]} Rad8 {[%emt 0:01:59]} 15. Rad1 {[%emt 0:09:03]} c4 {[%emt 0:04:44]} 16. f4 {[%emt 0:07:09]} Qh6 {[%emt 0:02:42]} 17. Qg3 {[%emt 0:13:01]} Nd3 {[%emt 0:02:39]} 18. Nxc4 {[%emt 0:08:24]} Nxf4 {[%emt 0:11:25]} 19. Rxf4 {[%emt 0:02:05]} Rxd1+ {[%emt 0:00:33]} 20. Bxd1 {[%emt 0:00:17]} Bxc4 {[%emt 0:00:07]} 21. b3 {[%emt 0:01:07]} Qb6+ {[%emt 0:00:57]} 22. Rf2 {[%emt 0:02:06]} Rd8 {[%emt 0:01:10]} 23. Bh5 {[%emt 0:08:03]} Be6 {[%emt 0:10:31]} 24. Qf4 {[%emt 0:05:10]} g6 {[%emt 0:02:10]} 25. h3 {[%emt 0:05:23]} Rd7 {[%emt 0:06:33]} 26. Bg4 {[%emt 0:02:26]} Bxg4 {[%emt 0:11:56]} 27. Qxg4 {[%emt 0:00:15]} Re7 {[%emt 0:03:13]} 28. Kf1 {[%emt 0:01:18]} Qe3 {[%emt 0:02:02]} 29. Qd1 {[%emt 0:06:39]} Qxe4 {[%emt 0:03:32]} 30. Qd8+ {[%emt 0:04:54]} Kg7 {[%emt 0:01:07]} 31. Qd4+ {[%emt 0:01:14]} Qxd4 {[%emt 0:00:09]} 32. cxd4 {[%emt 0:00:04]} Rd7 {[%emt 0:00:06]} 33. Rc2 {[%emt 0:00:37]} c6 {[%emt 0:00:28]} 34. Rc4 {[%emt 0:00:28]} Rd6 {[%emt 0:00:21]} 35. Ke2 {[%emt 0:00:33]} Kf6 {[%emt 0:01:30]} 36. Ke3 {[%emt 0:02:38]} Ke6 {[%emt 0:02:09]} 37. Ke4 {[%emt 0:00:39]} b6 {[%emt 0:01:24]} 38. Ra4 {[%emt 0:01:03]} Rd7 {[%emt 0:00:26]} 39. Rc4 {[%emt 0:00:25]} f5+ {[%emt 0:00:06]} 40. Ke3 {[%emt 0:00:47]} Kd5 {[%emt 0:00:07]} 41. Kd3 {[%emt 0:30:54]} Re7 {[%emt 0:30:10]} 42. Rc3 {[%emt 0:01:15]} f4 {[%emt 0:00:40]} 43. Rc4 {[%emt 0:00:34]} Re3+ {[%emt 0:00:19]} 44. Kd2 {[%emt 0:00:09]} Rg3 {[%emt 0:00:17]} 45. a4 {[%emt 0:01:05]} Rxg2+ {[%emt 0:00:13]} 46. Kd3 {[%emt 0:00:27]} Rg3+ {[%emt 0:00:09]} 47. Kc2 {[%emt 0:00:20]} Rxh3 {[%emt 0:00:10]} 48. a5 {[%emt 0:00:41]} f3 {[%emt 0:00:55]} 49. Kd1 {[%emt 0:00:38]} f2 {[%emt 0:00:10]} 50. Ke2 {[%emt 0:00:06]} Rxb3 {[%emt 0:00:17]} 51. Rc2 {[%emt 0:00:10]} Rf3 {[%emt 0:00:40]} 52. Kxf3 {[%emt 0:00:31]} f1=Q+ {[%emt 0:00:15]} 53. Rf2 {[%emt 0:00:12]} Qxf2+ {[%emt 0:00:19]} 0-1

[Event "FIDE Open Sachove Univerzity QCC"]
[Site "Ceske Budejovice"]
[Date "2020.07.09"]
[Round "5.4"]
[White "Chval, Petr"]
[Black "Popov, Roman"]
[Result "1/2-1/2"]
[ECO "B15"]
[WhiteElo "1926"]
[BlackElo "2353"]
[Annotator "ChessBase"]
[PlyCount "65"]
[EventDate "2020.07.01"]
[EventType "swiss"]
[EventCountry "CZE"]
[TimeControl "40/5400+30:1800+30"]

1. e4 {[%emt 0:02:25]} c6 {[%emt 0:00:00]} 2. Nc3 {[%emt 0:00:08]} d5 {[%emt 0:00:00]} 3. Nf3 {[%emt 0:00:04]} dxe4 {[%emt 0:00:12]} 4. Nxe4 {[%emt 0:00:04]} Nf6 {[%emt 0:00:10]} 5. Nxf6+ {[%emt 0:00:06]} exf6 {[%emt 0:00:05]} 6. d4 {[%emt 0:00:06]} Bd6 {[%emt 0:00:24]} 7. Be2 {[%emt 0:02:16]} O-O {[%emt 0:00:13]} 8. O-O {[%emt 0:00:02]} Re8 {[%emt 0:01:11]} 9. Re1 {[%emt 0:00:23]} Be6 {[%emt 0:01:23]} 10. c4 {[%emt 0:02:24]} Qc7 {[%emt 0:02:00]} 11. Be3 {[%emt 0:06:29]} Nd7 {[%emt 0:03:49]} 12. Rc1 {[%emt 0:00:52]} Rad8 {[%emt 0:04:21]} 13. d5 {[%emt 0:06:10]} Bg4 {[%emt 0:01:39]} 14. c5 {[%emt 0:00:35]} Nxc5 {[%emt 0:16:24]} 15. Bxc5 {[%emt 0:01:09]} Bxc5 {[%emt 0:01:30]} 16. Rxc5 {[%emt 0:00:57]} Qe7 {[%emt 0:01:04]} 17. Rc3 {[%emt 0:20:18]} Rxd5 {[%emt 0:01:45]} 18. Rd3 {[%emt 0:06:45]} Bxf3 {[%emt 0:13:37]} 19. gxf3 {[%emt 0:00:28]} Re5 {[%emt 0:01:30]} 20. Kf1 {[%emt 0:07:46]} Qe6 {[%emt 0:02:56]} 21. f4 {[%emt 0:00:16]} Re4 {[%emt 0:03:05]} 22. Rd8 {[%emt 0:03:35]} Qh3+ {[%emt 0:08:12]} 23. Kg1 {[%emt 0:00:07]} g6 {[%emt 0:01:40]} 24. Rxe8+ {[%emt 0:00:57]} Rxe8 {[%emt 0:00:06]} 25. Qd2 {[%emt 0:12:07]} Re4 {[%emt 0:05:47]} 26. Bd1 {[%emt 0:01:22]} Rxe1+ {[%emt 0:02:14]} 27. Qxe1 {[%emt 0:00:02]} Qf5 {[%emt 0:00:27]} 28. Qd2 {[%emt 0:05:46]} Qe4 {[%emt 0:01:22]} 29. Bc2 {[%emt 0:00:37]} Qe6 {[%emt 0:00:33]} 30. Qc3 {[%emt 0:07:03]} Qg4+ {[%emt 0:01:02]} 31. Qg3 {[%emt 0:00:20]} Qe2 {[%emt 0:00:19]} 32. Qd3 {[%emt 0:04:59]} Qg4+ {[%emt 0:00:24]} 33. Qg3 {[%emt 0:00:16]} 1/2-1/2

[Event "FIDE Open Sachove Univerzity QCC"]
[Site "Ceske Budejovice"]
[Date "2020.07.05"]
[Round "5.4"]
[White "Stary, Vojtech"]
[Black "Skalicky, Jindrich"]
[Result "1-0"]
[ECO "B48"]
[WhiteElo "1422"]
[BlackElo "1165"]
[Annotator "NA RC"]
[PlyCount "111"]
[EventDate "2020.07.01"]
[EventType "swiss"]
[EventCountry "CZE"]
[SourceTitle "playchess.com"]
[Source "ChessBase"]
[SourceQuality "1"]
[TimeControl "40/5400+30:1800+30"]

1. e4 {[%emt 0:00:00]} c5 {[%emt 0:00:00]} 2. Nf3 {[%emt 0:00:00]} e6 {[%emt 0:00:00]} 3. d4 {[%emt 0:00:00]} cxd4 {[%emt 0:00:00]} 4. Nxd4 {[%emt 0:00:00]} Nc6 {[%emt 0:00:00]} 5. Nc3 {[%emt 0:00:06]} Qc7 {[%emt 0:00:08]} 6. Be3 {[%emt 0:00:52]} Nf6 {[%emt 0:00:24]} 7. f3 {[%emt 0:02:34]} Be7 {[%emt 0:02:38]} 8. Be2 {[%emt 0:05:40]} O-O {[%emt 0:00:50]} 9. O-O {[%emt 0:01:44]} Rd8 {[%emt 0:02:47]} 10. Kh1 {[%emt 0:04:32]} b6 {[%emt 0:01:33]} 11. f4 {[%emt 0:04:18]} Bb7 {[%emt 0:00:44]} 12. Bf3 {[%emt 0:03:00]} Rac8 {[%emt 0:01:26]} 13. f5 {[%emt 0:02:01]} Nxd4 {[%emt 0:04:16]} 14. Bxd4 {[%emt 0:02:43]} e5 {[%emt 0:01:13]} 15. Bg1 {[%emt 0:05:49]} d6 {[%emt 0:01:30]} 16. g4 {[%emt 0:03:27]} Rd7 {[%emt 0:02:14]} 17. g5 {[%emt 0:01:48]} Ne8 {[%emt 0:00:07]} 18. f6 {[%emt 0:01:39]} gxf6 {[%emt 0:01:55]} 19. Bg4 {[%emt 0:02:05]} fxg5 {[%emt 0:00:50]} 20. Bxd7 {[%emt 0:03:01]} Qxd7 {[%emt 0:00:12]} 21. Nd5 {[%emt 0:03:37]} Bxd5 {[%emt 0:04:13]} 22. Qxd5 {[%emt 0:02:04]} Qe6 {[%emt 0:00:36]} 23. Qxe6 {[%emt 0:01:17]} fxe6 {[%emt 0:00:14]} 24. c3 {[%emt 0:01:58]} Nf6 {[%emt 0:02:25]} 25. Rae1 {[%emt 0:08:59]} Rc4 {[%emt 0:00:35]} 26. Kg2 {[%emt 0:10:11]} Rxe4 {[%emt 0:01:25]} 27. Rxe4 {[%emt 0:01:56]} Nxe4 {[%emt 0:00:19]} 28. Re1 {[%emt 0:02:15]} Nf6 {[%emt 0:09:30]} 29. Bf2 {[%emt 0:07:33]} Nh5 {[%emt 0:02:25]} 30. Bg3 {[%emt 0:01:47]} Nf4+ {[%emt 0:02:23]} 31. Bxf4 {[%emt 0:00:41]} gxf4 {[%emt 0:00:12]} 32. Kf3 {[%emt 0:00:49]} Kf7 {[%emt 0:01:28]} 33. c4 {[%emt 0:01:21]} h5 {[%emt 0:03:53]} 34. Ke4 {[%emt 0:01:07]} h4 {[%emt 0:04:40]} 35. Rg1 {[%emt 0:05:54]} Kf6 {[%emt 0:04:55]} 36. Rg8 {[%emt 0:01:34]} Kf7 {[%emt 0:01:22]} 37. Ra8 {[%emt 0:01:03]} d5+ {[%emt 0:01:21]} 38. Kf3 {[%emt 0:05:03]} a6 {[%emt 0:09:37]} 39. Rxa6 {[%emt 0:00:43]} dxc4 {[%emt 0:01:12]} 40. Rxb6 {[%emt 0:00:46]} Bc5 {[%emt 0:01:57]} 41. Rc6 {[%emt 0:32:48]} Bd4 {[%emt 0:33:37]} 42. Rxc4 {[%emt 0:01:44]} Bxb2 {[%emt 0:02:02]} 43. a4 {[%emt 0:00:30]} Bd4 {[%emt 0:04:42]} 44. a5 {[%emt 0:00:24]} Ke8 {[%emt 0:01:24]} 45. a6 {[%emt 0:00:00]} Bb6 {[%emt 0:00:00]} 46. Rc6 {[%emt 0:00:00]} Ba7 {[%emt 0:00:00]} 47. Rc7 {[%emt 0:00:00]} Bd4 {[%emt 0:00:00]} 48. a7 {[%emt 0:00:00]} Bxa7 {[%emt 0:00:00]} 49. Rxa7 {[%emt 0:00:00]} Kf8 {[%emt 0:00:00]} 50. Rh7 {[%emt 0:00:00]} Kg8 {[%emt 0:00:00]} 51. Rxh4 {[%emt 0:00:00]} Kf7 {[%emt 0:00:00]} 52. Rg4 {[%emt 0:00:00]} Kf6 {[%emt 0:00:00]} 53. h4 Kf5 {[%emt 0:00:00]} 54. Rg1 {[%emt 0:00:00]} e4+ {[%emt 0:00:00]} 55. Ke2 {[%emt 0:00:00]} f3+ {[%emt 0:00:00]} 56. Ke3 {[%emt 0:00:00]} 1-0

[Event "FIDE Open Sachove Univerzity QCC"]
[Site "Ceske Budejovice"]
[Date "2020.07.09"]
[Round "5.5"]
[White "Zelbova, Lada"]
[Black "Straka, Zdenek"]
[Result "1/2-1/2"]
[ECO "B13"]
[WhiteElo "1637"]
[BlackElo "1812"]
[Annotator "NA"]
[PlyCount "93"]
[EventDate "2020.07.01"]
[EventType "swiss"]
[EventCountry "CZE"]
[TimeControl "40/5400+30:1800+30"]

1. d4 {[%emt 1:00:02]} d5 {[%emt 0:11:29]} 2. Bf4 {[%emt 0:00:00]} c5 {[%emt 0:00:09]} 3. e3 {[%emt 0:00:00]} cxd4 {[%emt 0:00:19]} 4. exd4 {[%emt 0:00:00]} Nc6 {[%emt 0:00:01]} 5. c3 {[%emt 0:00:00]} Bf5 {[%emt 0:01:50]} 6. Bd3 {[%emt 0:00:00]} Qd7 {[%emt 0:07:32]} 7. Nf3 {[%emt 0:00:00]} f6 {[%emt 0:01:09]} 8. O-O {[%emt 0:00:00]} g5 {[%emt 0:00:10]} 9. Bg3 {[%emt 0:00:00]} h5 {[%emt 0:00:14]} 10. h4 {[%emt 0:00:00]} g4 {[%emt 0:01:10]} 11. Nh2 {[%emt 0:00:00]} O-O-O {[%emt 0:01:02]} 12. Re1 {[%emt 0:00:00]} Bg7 {[%emt 0:02:05]} 13. Bb5 {[%emt 0:00:00]} Nh6 {[%emt 0:05:53]} 14. Qa4 {[%emt 0:00:00]} Rhe8 {[%emt 0:02:23]} 15. Nd2 {[%emt 0:01:16]} e5 {[%emt 0:00:41]} 16. Nb3 {[%emt 0:01:47]} Qc7 {[%emt 0:03:23]} 17. Nc5 {[%emt 0:04:58]} Bd7 {[%emt 0:03:05]} 18. Bxc6 {[%emt 0:02:06]} bxc6 {[%emt 0:17:10]} 19. b4 {[%emt 0:03:53]} Nf5 {[%emt 0:00:38]} 20. Nf1 {[%emt 0:05:17]} Nxg3 {[%emt 0:01:29]} 21. Nxg3 {[%emt 0:00:08]} Rh8 {[%emt 0:07:49]} 22. Qa6+ {[%emt 0:02:34]} Kb8 {[%emt 0:00:31]} 23. Qd3 {[%emt 0:00:43]} Bc8 {[%emt 0:02:43]} 24. b5 {[%emt 0:03:28]} e4 {[%emt 0:03:27]} 25. Qe2 {[%emt 0:00:49]} Ka8 {[%emt 0:01:33]} 26. a4 {[%emt 0:02:41]} Bf8 {[%emt 0:00:56]} 27. Na6 {[%emt 0:01:07]} Bxa6 {[%emt 0:03:49]} 28. bxa6 {[%emt 0:00:06]} Rb8 {[%emt 0:01:10]} 29. Reb1 {[%emt 0:01:27]} Bd6 {[%emt 0:03:34]} 30. Nf5 {[%emt 0:01:04]} Rxb1+ {[%emt 0:00:51]} 31. Rxb1 {[%emt 0:00:08]} Rb8 {[%emt 0:00:14]} 32. Rxb8+ {[%emt 0:03:03]} Qxb8 {[%emt 0:00:57]} 33. Nxd6 {[%emt 0:02:30]} Qxd6 {[%emt 0:00:27]} 34. Qb2 {[%emt 0:00:11]} Qc7 {[%emt 0:01:11]} 35. Qb4 {[%emt 0:00:43]} c5 {[%emt 0:04:21]} 36. Qb5 {[%emt 0:02:28]} Qe7 {[%emt 0:02:34]} 37. Qc6+ {[%emt 0:02:30]} Kb8 {[%emt 0:00:09]} 38. Qxd5 {[%emt 0:01:25]} cxd4 {[%emt 0:01:38]} 39. cxd4 {[%emt 0:00:57]} e3 {[%emt 0:01:04]} 40. fxe3 {[%emt 0:01:07]} Qxe3+ {[%emt 0:00:25]} 41. Kh2 {[%emt 0:31:02]} Qf4+ {[%emt 0:31:57]} 42. g3 {[%emt 0:00:00]} Qd2+ {[%emt 0:00:00]} 43. Qg2 {[%emt 0:00:00]} Qb4 {[%emt 0:00:00]} 44. Qf2 {[%emt 0:00:00]} Qb6 {[%emt 0:00:00]} 45. Qf4+ {[%emt 0:00:00]} Kc8 {[%emt 0:00:00]} 46. Qf5+ {[%emt 0:00:00]} Kb8 {[%emt 0:00:00]} 47. Qf4+ {[%emt 0:00:00]} 1/2-1/2

[Event "FIDE Open Sachove Univerzity QCC"]
[Site "Ceske Budejovice"]
[Date "2020.07.05"]
[Round "5.5"]
[White "Policar, Martin"]
[Black "Zezula, Matej"]
[Result "1/2-1/2"]
[ECO "C47"]
[WhiteElo "1258"]
[BlackElo "1125"]
[Annotator "NA RC"]
[PlyCount "111"]
[EventDate "2020.07.01"]
[EventType "swiss"]
[EventCountry "CZE"]
[SourceTitle "playchess.com"]
[Source "ChessBase"]
[SourceQuality "1"]
[TimeControl "40/5400+30:1800+30"]

1. e4 {[%emt 0:00:00]} e5 {[%emt 0:00:00]} 2. Nf3 {[%emt 0:00:00]} Nc6 {[%emt 0:00:00]} 3. Bc4 {[%emt 0:00:28]} Nf6 {[%emt 0:00:19]} 4. Nc3 {[%emt 0:01:03]} Bb4 {[%emt 0:01:49]} 5. d3 {[%emt 0:03:54]} d6 {[%emt 0:06:36]} 6. O-O {[%emt 0:01:52]} Bg4 {[%emt 0:00:56]} 7. h3 {[%emt 0:09:55]} Bh5 {[%emt 0:01:44]} 8. Bb5 {[%emt 0:02:48]} O-O {[%emt 0:04:39]} 9. Bxc6 {[%emt 0:05:02]} bxc6 {[%emt 0:00:44]} 10. Bg5 {[%emt 0:09:17]} Bxc3 {[%emt 0:05:11]} 11. bxc3 {[%emt 0:01:04]} d5 {[%emt 0:00:36]} 12. Re1 {[%emt 0:02:45]} dxe4 {[%emt 0:03:41]} 13. dxe4 {[%emt 0:00:29]} Qxd1 {[%emt 0:02:42]} 14. Raxd1 {[%emt 0:00:15]} Bxf3 {[%emt 0:00:53]} 15. gxf3 {[%emt 0:00:25]} Rab8 {[%emt 0:06:41]} 16. Be3 {[%emt 0:00:46]} Rb2 {[%emt 0:02:42]} 17. Rb1 {[%emt 0:06:22]} Rxa2 {[%emt 0:01:28]} 18. Rec1 {[%emt 0:01:42]} a5 {[%emt 0:08:07]} 19. Ra1 {[%emt 0:01:48]} Rxa1 {[%emt 0:01:28]} 20. Rxa1 {[%emt 0:00:17]} Ra8 {[%emt 0:00:40]} 21. Ra4 {[%emt 0:00:30]} Ra6 {[%emt 0:01:19]} 22. c4 {[%emt 0:00:34]} h6 {[%emt 0:01:33]} 23. Bd2 {[%emt 0:00:55]} Ne8 {[%emt 0:04:34]} 24. Rxa5 {[%emt 0:00:56]} Rxa5 {[%emt 0:01:00]} 25. Bxa5 {[%emt 0:00:18]} Kh7 {[%emt 0:00:53]} 26. c5 {[%emt 0:02:03]} Kg6 {[%emt 0:00:31]} 27. Bc3 {[%emt 0:01:08]} f6 {[%emt 0:00:53]} 28. Kg2 {[%emt 0:01:37]} h5 {[%emt 0:02:50]} 29. h4 {[%emt 0:00:31]} Kf7 {[%emt 0:01:09]} 30. Bd2 {[%emt 0:00:49]} Ke6 {[%emt 0:04:19]} 31. c4 {[%emt 0:02:04]} f5 {[%emt 0:03:53]} 32. Kf1 {[%emt 0:01:11]} Nf6 {[%emt 0:05:14]} 33. exf5+ {[%emt 0:01:21]} Kxf5 {[%emt 0:00:54]} 34. Ke1 {[%emt 0:01:41]} e4 {[%emt 0:01:09]} 35. Ke2 {[%emt 0:00:14]} exf3+ {[%emt 0:02:50]} 36. Kxf3 {[%emt 0:01:02]} Ne4 {[%emt 0:00:35]} 37. Bb4 {[%emt 0:01:11]} g5 {[%emt 0:01:03]} 38. hxg5 {[%emt 0:01:23]} Nxg5+ {[%emt 0:00:56]} 39. Kg3 {[%emt 0:02:02]} Ne4+ {[%emt 0:00:40]} 40. Kg2 {[%emt 0:03:37]} h4 {[%emt 0:07:50]} 41. f3 {[%emt 0:30:52]} Ng5 {[%emt 0:30:30]} 42. Be1 {[%emt 0:01:17]} h3+ {[%emt 0:00:17]} 43. Kg3 {[%emt 0:01:16]} h2 {[%emt 0:00:37]} 44. Kg2 {[%emt 0:00:59]} h1=Q+ {[%emt 0:03:08]} 45. Kxh1 {[%emt 0:03:15]} Nxf3 {[%emt 0:00:37]} 46. Bg3 {[%emt 0:00:39]} Ne5 {[%emt 0:00:26]} 47. Kg1 {[%emt 0:01:37]} Nxc4 {[%emt 0:00:19]} 48. Bxc7 {[%emt 0:00:13]} Ke4 {[%emt 0:00:20]} 49. Bb6 {[%emt 0:00:24]} Kd5 {[%emt 0:00:29]} 50. Kf2 {[%emt 0:00:13]} Ke6 {[%emt 0:00:30]} 51. Ke2 Kd7 52. Kd3 {[%emt 0:04:41]} Nxb6 {[%emt 0:00:45]} 53. cxb6 {[%emt 0:00:26]} c5 {[%emt 0:00:16]} 54. Kc4 {[%emt 0:00:14]} Kc6 {[%emt 0:00:10]} 55. b7 {[%emt 0:00:40]} Kxb7 {[%emt 0:00:16]} 56. Kxc5 1/2-1/2